bitfinex/quotes_BTCUSD_20251031
["timestamp","ask_amount","ask_price","bid_price","bid_amount"]
[1761913099993,0.14270048,110540.0,110530.0,0.01226]
[1761913100211,0.14270048,110540.0,110530.0,0.02809]
[1761913100862,0.0004395,110540.0,110530.0,0.15475244]
[1761913101072,0.12709048,110540.0,110530.0,0.03009]
[1761913101289,0.12709048,110540.0,110530.0,0.18166244]
[1761913101499,0.12709048,110540.0,110530.0,0.17966244]
[1761913101735,0.12709048,110540.0,110530.0,0.053]
[1761913101954,0.12709048,110540.0,110530.0,0.17966244]
[1761913102177,0.12666244,110530.0,110520.0,0.12666965]
[1761913102395,0.15382244,110530.0,110520.0,0.01583]
[1761913102608,0.15404221,110530.0,110520.0,0.01583]
[1761913102833,0.1266739,110520.0,110510.0,0.0114]
[1761913103099,0.1422839,110520.0,110510.0,0.02723]
[1761913103961,0.1266739,110520.0,110510.0,0.15439632]
[1761913104181,0.1422839,110520.0,110510.0,0.02771096]
[1761913104389,0.1422839,110520.0,110510.0,0.02848096]
[1761913104824,0.1422839,110520.0,110510.0,0.02948096]
[1761913105042,0.1422839,110520.0,110510.0,0.03348096]
[1761913105240,0.15140093,110520.0,110510.0,0.03348096]
[1761913105672,0.15140093,110520.0,110510.0,0.00548096]
[1761913106333,2.17453093,110520.0,110510.0,0.00548096]
[1761913107274,2.17453093,110520.0,110510.0,0.00148096]
[1761913107509,2.17453093,110520.0,110510.0,0.00248096]
[1761913107726,2.98109227,110520.0,110510.0,0.00248096]
[1761913107940,2.30053222,110520.0,110510.0,0.00248096]
[1761913108386,2.15140093,110520.0,110510.0,0.01831096]
[1761913108602,0.15140093,110520.0,110510.0,0.03048096]
[1761913108819,0.15140093,110520.0,110510.0,0.00248096]
[1761913109012,0.17453093,110520.0,110510.0,0.00248096]
[1761913110097,0.15140093,110520.0,110510.0,0.01831096]
[1761913111035,0.15140093,110520.0,110510.0,0.00248096]
[1761913112823,0.20582724,110520.0,110510.0,0.00248096]
[1761913113042,2.98109227,110520.0,110510.0,0.00248096]
[1761913113476,2.30053222,110520.0,110510.0,0.00248096]
[1761913115577,2.30053222,110520.0,110510.0,0.00248096]
[1761913118479,3.32109227,110520.0,110510.0,0.00248096]
[1761913119147,3.34830008,110520.0,110510.0,0.00248096]
[1761913119571,3.43811909,110520.0,110510.0,0.00048096]
[1761913119805,3.44311909,110520.0,110510.0,0.00048096]
[1761913120011,3.44511909,110520.0,110510.0,0.00048096]
[1761913121139,3.10511909,110520.0,110510.0,0.00048096]
[1761913121353,3.45356233,110520.0,110510.0,0.00048096]
[1761913121979,3.35530008,110520.0,110510.0,0.00048096]
[1761913123028,2.67474003,110520.0,110510.0,0.00048096]
[1761913124294,0.67474003,110520.0,110510.0,0.00048096]
[1761913124498,0.62440222,110520.0,110510.0,0.00048096]
[1761913124723,0.57889291,110520.0,110510.0,0.01585096]
[1761913125080,0.57889291,110520.0,110510.0,0.02728096]
[1761913125284,0.58734674,110520.0,110510.0,0.02728096]
[1761913127030,0.59641044,110520.0,110510.0,0.02728096]
[1761913127206,0.49119143,110520.0,110510.0,0.17732632]
[1761913127578,0.347,110520.0,110510.0,0.17732632]
[1761913127784,0.4736739,110520.0,110510.0,0.17732632]
[1761913127984,0.4736739,110520.0,110510.0,0.05064096]
[1761913128172,0.48214312,110520.0,110510.0,0.05064096]
[1761913128379,0.48214312,110520.0,110510.0,0.17732632]
[1761913128380,0.4736739,110520.0,110510.0,0.17732632]
[1761913128829,0.4716739,110520.0,110510.0,0.17732632]
[1761913129259,0.47514637,110520.0,110510.0,0.17732632]
[1761913129652,0.47514637,110520.0,110510.0,0.17932632]
[1761913129864,0.47576455,110520.0,110510.0,0.05264096]
[1761913130073,0.48423686,110520.0,110510.0,0.05264096]
[1761913131631,0.48423686,110520.0,110510.0,0.17932632]
[1761913132478,0.00021977,110530.0,110520.0,0.1266739]
[1761913132675,0.00021977,110530.0,110520.0,1.27624296]
[1761913133770,0.1266289,110560.0,110540.0,0.12664367]
[1761913133971,0.1266289,110560.0,110550.0,0.02833]
[1761913133972,0.1418289,110560.0,110550.0,0.02833]
[1761913134152,0.0152,110560.0,110550.0,0.15496952]
[1761913134297,0.14182807,110560.0,110550.0,0.15496952]
[1761913134501,0.14182807,110560.0,110550.0,0.02833]
[1761913134705,0.14248717,110560.0,110550.0,0.02833]
[1761913134908,0.15153203,110560.0,110550.0,0.02833]
[1761913135275,0.15167626,110560.0,110550.0,0.02833]
[1761913136582,0.15167626,110560.0,110540.0,0.15000367]
[1761913136800,0.17506716,110560.0,110540.0,0.15000367]
[1761913137228,0.14505952,110550.0,110540.0,0.14247367]
[1761913137445,0.01842,110550.0,110540.0,0.14247367]
[1761913137673,0.14505952,110550.0,110540.0,0.14248098]
[1761913137893,0.14505952,110550.0,110540.0,0.01583]
[1761913138298,0.14505952,110550.0,110540.0,0.01683]
[1761913138675,0.14505952,110550.0,110540.0,0.01583]
[1761913138885,0.14505952,110550.0,110530.0,0.17155506]
[1761913139094,0.14185098,110540.0,110530.0,0.16403898]
[1761913139291,0.0152,110540.0,110530.0,0.16403898]
[1761913139980,0.14185098,110540.0,110530.0,0.16403898]
[1761913140163,0.0152,110540.0,110530.0,0.16403898]
[1761913140785,0.12985952,110550.0,110530.0,0.18739898]
[1761913140956,0.12985952,110550.0,110540.0,0.03919]
[1761913141657,0.12985952,110550.0,110540.0,0.16584098]
[1761913141886,0.001,110550.0,110540.0,0.16584098]
[1761913142099,0.14327896,110550.0,110540.0,0.16584098]
[1761913142310,0.13029896,110550.0,110540.0,0.16584098]
[1761913142751,0.12707896,110550.0,110540.0,0.16584098]
[1761913143195,0.12807896,110550.0,110540.0,0.16584098]
[1761913144078,0.12807896,110550.0,110540.0,0.03919]
[1761913144294,0.14649896,110550.0,110540.0,0.01583]
[1761913144494,0.14549896,110550.0,110540.0,0.01583]
[1761913144703,0.14549896,110550.0,110540.0,0.01683]
[1761913145841,0.13029896,110550.0,110540.0,0.16684098]
[1761913146068,0.00043944,110550.0,110540.0,0.16684098]
[1761913146709,0.00043944,110550.0,110540.0,0.18493397]
[1761913148074,0.00043944,110550.0,110540.0,0.27475298]
[1761913148286,0.00043944,110550.0,110540.0,1.32340231]
[1761913149185,0.00043944,110550.0,110540.0,1.32240231]
[1761913149572,0.00043944,110550.0,110540.0,1.33240231]
[1761913149785,0.00043944,110550.0,110540.0,1.32240232]
[1761913151884,0.00043944,110550.0,110540.0,0.64184227]
[1761913153939,0.00043944,110550.0,110540.0,1.32240232]
[1761913157290,0.00043944,110550.0,110540.0,1.47170232]
[1761913161382,0.00043944,110550.0,110540.0,1.2337795]
[1761913162218,0.00043944,110550.0,110540.0,0.79114227]
[1761913162424,0.00043944,110550.0,110540.0,1.2337795]
[1761913163044,0.00043944,110550.0,110540.0,1.2452195]
[1761913167373,0.00043944,110550.0,110540.0,1.58161841]
[1761913170592,0.00043944,110550.0,110540.0,0.80258227]
[1761913170815,0.00043944,110550.0,110540.0,1.58161841]
[1761913172179,0.00043944,110550.0,110540.0,0.80258227]
[1761913172402,0.00043944,110550.0,110540.0,1.58161841]
[1761913173771,0.00014423,110560.0,110550.0,1.29185793]
[1761913174005,0.00014423,110560.0,110550.0,1.43335694]
[1761913174427,1e-08,110560.0,110550.0,1.44410548]
[1761913174651,1e-08,110560.0,110550.0,1.43335694]
[1761913174856,1e-08,110560.0,110550.0,1.58265694]
[1761913175073,1e-08,110560.0,110550.0,1.58965694]
[1761913175977,1e-08,110560.0,110550.0,1.58265694]
[1761913176216,1e-08,110560.0,110550.0,1.59265694]
[1761913176636,1e-08,110560.0,110550.0,0.8136208]
[1761913176855,1e-08,110560.0,110550.0,1.59265694]
[1761913177274,1e-08,110560.0,110550.0,1.59565694]
[1761913178513,1e-08,110560.0,110550.0,1.62283916]
[1761913178917,1e-08,110560.0,110550.0,1.63354512]
[1761913179404,1e-08,110560.0,110550.0,1.62283916]
[1761913181798,1e-08,110560.0,110550.0,1.23332109]
[1761913182006,1e-08,110560.0,110550.0,1.1599566]
[1761913182818,1e-08,110560.0,110550.0,1.1499566]
[1761913183188,1e-08,110560.0,110550.0,1.1579566]
[1761913183843,1e-08,110560.0,110550.0,1.1549566]
[1761913184208,1e-08,110560.0,110550.0,1.1569566]
[1761913184424,1e-08,110560.0,110550.0,1.1489566]
[1761913184612,1e-08,110560.0,110550.0,1.1569566]
[1761913187185,1e-08,110560.0,110550.0,0.76743853]
[1761913187403,1e-08,110560.0,110550.0,1.1569566]
[1761913189086,1e-08,110560.0,110550.0,0.15149901]
[1761913189289,1.34416229,110560.0,110550.0,0.01]
[1761913189526,1.44246403,110560.0,110550.0,0.01]
[1761913189903,3.90879193,110560.0,110550.0,0.01]
[1761913190102,3.89182456,110560.0,110550.0,0.01]
[1761913190350,3.94495885,110560.0,110550.0,0.01]
[1761913190511,3.94495885,110560.0,110550.0,0.008]
[1761913190706,0.12666038,110540.0,110520.0,0.14716203]
[1761913190949,0.53241051,110530.0,110520.0,0.14716203]
[1761913191319,0.58599456,110530.0,110520.0,0.02048813]
[1761913191720,0.58599456,110530.0,110520.0,0.01144]
[1761913191948,0.58599456,110530.0,110520.0,0.001]
[1761913191949,0.61014456,110530.0,110520.0,0.001]
[1761913192351,0.62065394,110530.0,110510.0,0.16285536]
[1761913192529,0.01623,110520.0,110510.0,0.24385437]
[1761913192747,0.60442394,110530.0,110510.0,0.26794437]
[1761913193558,0.60442394,110530.0,110520.0,0.1276739]
[1761913193737,0.60442394,110530.0,110520.0,0.1296739]
[1761913193935,0.4698415,110530.0,110520.0,0.1449439]
[1761913194158,0.45933212,110530.0,110520.0,0.1419439]
[1761913194573,0.45933212,110530.0,110520.0,0.1429439]
[1761913194772,0.01060354,110540.0,110520.0,0.1429439]
[1761913194978,2.58598361,110540.0,110530.0,0.02735]
[1761913195646,2.0,110540.0,110530.0,0.15401244]
[1761913195856,0.14288098,110540.0,110530.0,0.05144]
[1761913196055,0.15322224,110540.0,110530.0,0.02735]
[1761913196454,0.59632436,110540.0,110530.0,0.15401244]
[1761913196840,0.59632436,110540.0,110530.0,0.02735]
[1761913197465,0.59632436,110540.0,110530.0,0.02835]
[1761913197987,0.59632436,110540.0,110530.0,0.01308]
[1761913198403,0.59632436,110540.0,110530.0,0.15501244]
[1761913198618,0.59632436,110540.0,110530.0,0.02835]
[1761913199365,0.46967338,110540.0,110530.0,0.15501244]
[1761913199572,0.59632436,110540.0,110530.0,0.15501244]
[1761913200216,0.59954436,110540.0,110530.0,0.15501244]
[1761913200415,1e-08,110560.0,110550.0,0.12663952]
[1761913200642,1e-08,110560.0,110550.0,0.24347853]
[1761913200851,0.00774,110560.0,110550.0,0.15365952]
[1761913201072,0.01646,110560.0,110550.0,0.15365952]
[1761913201509,0.14308807,110560.0,110550.0,0.02702]
[1761913201719,0.58619019,110560.0,110550.0,0.12963952]
[1761913201985,0.58619019,110560.0,110550.0,0.01827]
[1761913202456,2.22396083,110560.0,110550.0,0.003]
[1761913202669,2.66706295,110560.0,110550.0,0.003]
[1761913202895,0.12664217,110550.0,110530.0,0.17187975]
[1761913203133,0.13536217,110550.0,110530.0,0.17236071]
[1761913203344,0.58718429,110550.0,110530.0,0.17236071]
[1761913204456,0.57846429,110550.0,110530.0,0.17236071]
[1761913204686,0.57846429,110550.0,110540.0,0.12665098]
[1761913205109,0.57846429,110550.0,110530.0,0.17236071]
[1761913205323,0.57846429,110550.0,110540.0,0.16601098]
[1761913205324,0.12664217,110550.0,110540.0,0.16601098]
[1761913205535,0.13436807,110560.0,110550.0,0.12663952]
[1761913205763,0.00774,110560.0,110550.0,0.17807952]
[1761913205977,0.5787636,110570.0,110550.0,0.17807952]
[1761913206192,0.47566148,110570.0,110560.0,0.03936]
[1761913207089,0.48438148,110570.0,110560.0,0.01527]
[1761913207298,0.48638148,110570.0,110560.0,0.01527]
[1761913207744,0.48438148,110570.0,110560.0,0.01527]
[1761913207980,0.12662807,110560.0,110550.0,0.03617]
[1761913208211,0.12663952,110550.0,110540.0,0.15978747]
[1761913208494,0.13534807,110560.0,110540.0,0.15978747]
[1761913208960,0.12663952,110550.0,110540.0,0.15978747]
[1761913209409,0.12663952,110550.0,110540.0,0.17605747]
[1761913209637,0.12663952,110550.0,110540.0,0.17505747]
[1761913209862,0.13535952,110550.0,110530.0,0.17236071]
[1761913210080,0.38805117,110550.0,110530.0,0.17236071]
[1761913210303,0.12663952,110550.0,110540.0,0.01827]
[1761913210729,0.12663952,110550.0,110540.0,0.01627]
[1761913210947,0.12663952,110550.0,110530.0,0.17236071]
[1761913211157,0.56974164,110550.0,110530.0,0.17236071]
[1761913211379,0.12663952,110550.0,110530.0,0.17236071]
[1761913212366,0.12663952,110550.0,110540.0,0.16601098]
[1761913212588,2.0,110550.0,110540.0,0.16601098]
[1761913213172,2.12663952,110550.0,110540.0,0.03936]
[1761913213377,0.12663952,110550.0,110540.0,0.03936]
[1761913216474,0.12663952,110550.0,110540.0,0.16601098]
[1761913216730,0.13567293,110560.0,110540.0,0.16601098]
[1761913216976,0.13567293,110560.0,110550.0,0.0166]
[1761913216977,0.57877505,110560.0,110550.0,0.0166]
[1761913217835,0.57877505,110560.0,110550.0,0.05293]
[1761913218039,0.57877505,110560.0,110550.0,0.02855]
[1761913218304,0.12663952,110550.0,110540.0,0.02438]
[1761913218540,0.58724388,110560.0,110550.0,0.0116]
[1761913218541,0.57877505,110560.0,110550.0,0.0116]
[1761913218792,0.14614216,110560.0,110550.0,0.02724]
[1761913219029,0.14614212,110560.0,110550.0,0.17825952]
[1761913219263,0.14414212,110560.0,110550.0,0.17825952]
[1761913219513,0.00846919,110560.0,110550.0,0.17825952]
[1761913219746,0.13588031,110570.0,110560.0,0.12662807]
[1761913219988,0.48435485,110570.0,110560.0,0.16664807]
[1761913220177,0.48435485,110570.0,110560.0,0.04002]
[1761913220435,0.14435485,110570.0,110560.0,0.04002]
[1761913221138,0.00869419,110570.0,110560.0,0.16664807]
[1761913221362,0.13531081,110570.0,110560.0,0.16664807]
[1761913221588,0.13531081,110570.0,110560.0,0.04002]
[1761913222055,0.13731081,110570.0,110560.0,0.04002]
[1761913222512,0.12663952,110550.0,110540.0,0.16007747]
[1761913222726,0.12663952,110550.0,110540.0,0.14229098]
[1761913222940,0.56973019,110560.0,110540.0,0.18476397]
[1761913223155,0.13510143,110560.0,110550.0,0.05162]
[1761913224276,0.13510143,110560.0,110550.0,0.17825952]
[1761913224686,0.13510143,110560.0,110550.0,0.05162]
[1761913225345,0.00847336,110560.0,110550.0,0.17825952]
[1761913225619,0.00847336,110560.0,110550.0,0.19635088]
[1761913226107,0.5038791,110570.0,110550.0,0.19635088]
[1761913226340,0.5038791,110570.0,110560.0,0.04002]
[1761913227252,0.52083941,110570.0,110560.0,0.04002]
[1761913228590,0.52283941,110570.0,110560.0,0.04002]
[1761913228834,0.5058791,110570.0,110560.0,0.16664807]
[1761913229272,0.52284811,110570.0,110560.0,0.16664807]
[1761913230078,0.01069301,110570.0,110560.0,0.16664807]
[1761913230499,0.13730963,110570.0,110560.0,0.16664807]
[1761913231153,0.01069301,110570.0,110560.0,0.16664807]
[1761913231877,0.00869301,110570.0,110560.0,0.16664807]
[1761913232111,0.13530963,110570.0,110560.0,0.16664807]
[1761913232482,0.13530963,110570.0,110560.0,0.04002]
[1761913232683,0.13530963,110570.0,110560.0,0.16664807]
[1761913233046,0.13530963,110570.0,110560.0,0.17824807]
[1761913233459,0.00869301,110570.0,110560.0,0.17824807]
[1761913234107,0.13530963,110570.0,110560.0,0.17824807]
[1761913234784,0.13530963,110570.0,110560.0,0.05162]
[1761913235005,0.13530963,110570.0,110560.0,0.02724]
[1761913235479,0.13530963,110570.0,110560.0,0.05162]
[1761913235697,0.13530963,110570.0,110560.0,0.15386807]
[1761913235916,0.13530963,110570.0,110560.0,0.02724]
[1761913236106,0.13530963,110570.0,110550.0,0.16261952]
[1761913236317,0.13530963,110570.0,110550.0,0.25243853]
[1761913236318,0.12662807,110560.0,110550.0,0.25243853]
[1761913236536,0.12683627,110570.0,110550.0,0.25243853]
[1761913236747,0.13531829,110570.0,110550.0,0.25243853]
[1761913237167,0.13531829,110570.0,110560.0,0.01564]
[1761913237799,0.13531829,110570.0,110560.0,0.02724]
[1761913238652,0.00021965,110570.0,110560.0,0.17824807]
[1761913240252,0.12683627,110570.0,110560.0,0.02724]
[1761913240732,0.12683627,110570.0,110560.0,0.15386807]
[1761913240933,0.12683627,110570.0,110560.0,0.02724]
[1761913243179,0.79317305,110580.0,110560.0,0.02724]
[1761913243416,2.12661662,110570.0,110560.0,0.02724]
[1761913243636,0.12662807,110560.0,110550.0,0.03598]
[1761913243859,0.12662807,110560.0,110550.0,0.16261952]
[1761913244070,0.12662807,110560.0,110550.0,0.17877952]
[1761913244523,0.12661662,110570.0,110550.0,0.17877952]
[1761913244759,0.13510005,110570.0,110550.0,0.17877952]
[1761913244970,0.13510005,110570.0,110550.0,0.17977952]
[1761913245377,0.12662807,110560.0,110550.0,0.05314]
[1761913245620,0.12662807,110560.0,110550.0,0.05614]
[1761913245821,0.12662807,110560.0,110550.0,0.05514]
[1761913246031,0.12662807,110560.0,110550.0,0.05214]
[1761913246224,0.12662807,110560.0,110550.0,0.17877952]
[1761913246696,0.12662807,110560.0,110550.0,0.05214]
[1761913246892,0.12662807,110560.0,110550.0,0.02776]
[1761913247190,0.12662807,110560.0,110550.0,0.05113]
[1761913247416,0.12662807,110560.0,110550.0,0.17776952]
[1761913247869,0.5162654,110570.0,110550.0,0.17876952]
[1761913248094,0.12662807,110560.0,110550.0,0.03797]
[1761913248515,0.12662807,110560.0,110550.0,0.17720952]
[1761913248947,0.12662807,110560.0,110550.0,0.05057]
[1761913249745,0.51627685,110560.0,110550.0,0.0272]
[1761913250815,0.12662807,110560.0,110550.0,0.15383952]
[1761913250999,0.51627685,110560.0,110550.0,0.17720952]
[1761913251420,0.12662807,110560.0,110550.0,0.17720952]
[1761913252506,0.12662807,110560.0,110550.0,0.05057]
[1761913252726,0.12663952,110550.0,110540.0,0.0116]
[1761913252948,0.5162883,110550.0,110540.0,0.0272]
[1761913254006,0.5162883,110550.0,110540.0,0.15385098]
[1761913254191,0.5162883,110550.0,110540.0,0.17722098]
[1761913254807,0.5162883,110550.0,110540.0,0.05057]
[1761913255497,0.12663952,110550.0,110540.0,0.05057]
[1761913256320,0.12663952,110550.0,110540.0,0.17722098]
[1761913257445,0.51627685,110560.0,110540.0,0.17722098]
[1761913257666,0.86476215,110560.0,110550.0,0.0273]
[1761913258309,0.46662807,110560.0,110550.0,0.05067]
[1761913258740,0.46862807,110560.0,110550.0,0.05067]
[1761913259167,0.46862807,110560.0,110550.0,0.17730952]
[1761913259802,0.46662807,110560.0,110550.0,0.17730952]
[1761913260023,0.46662807,110560.0,110550.0,0.05067]
[1761913262624,0.46662807,110560.0,110550.0,0.17730952]
[1761913262846,0.34,110560.0,110550.0,0.17730952]
[1761913263068,0.46662807,110560.0,110550.0,0.17730952]
[1761913263282,0.46662807,110560.0,110550.0,0.05067]
[1761913263715,0.46662807,110560.0,110550.0,0.17730952]
[1761913263953,0.34,110560.0,110550.0,0.17730952]
[1761913264170,0.46662807,110560.0,110550.0,0.17730952]
[1761913265338,0.46662807,110560.0,110550.0,0.05067]
[1761913265723,0.46662807,110560.0,110550.0,0.17730952]
[1761913266078,0.34,110560.0,110550.0,0.17730952]
[1761913266539,2.0,110570.0,110560.0,0.12662807]
[1761913266767,0.0932057,110580.0,110560.0,0.17729807]
[1761913266984,0.44168967,110580.0,110570.0,0.05067]
[1761913267202,0.44168967,110580.0,110570.0,0.0273]
[1761913267414,0.83133845,110580.0,110570.0,0.0273]
[1761913267668,0.44190929,110580.0,110570.0,0.0253]
[1761913267904,0.83155807,110580.0,110570.0,0.0253]
[1761913268146,0.83168846,110580.0,110570.0,0.0253]
[1761913268359,0.44203968,110580.0,110570.0,0.0253]
[1761913269003,0.35956496,110580.0,110570.0,0.26510563]
[1761913269843,0.48817013,110580.0,110570.0,0.04867]
[1761913270181,0.48617013,110580.0,110570.0,0.04867]
[1761913270435,0.47768616,110580.0,110570.0,0.04867]
[1761913270598,0.47768616,110580.0,110570.0,0.0253]
[1761913270804,0.48616666,110580.0,110570.0,0.0253]
[1761913271209,0.87581544,110580.0,110570.0,0.0253]
[1761913271433,0.34883051,110580.0,110570.0,0.0253]
[1761913271646,0.47543568,110580.0,110570.0,0.04867]
[1761913272019,0.47543568,110580.0,110570.0,0.0253]
[1761913272232,0.46695518,110580.0,110570.0,0.0253]
[1761913273655,0.46695518,110580.0,110560.0,0.13832807]
[1761913273656,0.46661662,110570.0,110560.0,0.13832807]
[1761913273845,0.34,110570.0,110560.0,0.17790807]
[1761913274071,0.46661662,110570.0,110560.0,0.17790807]
[1761913274533,0.34,110570.0,110560.0,0.17790807]
[1761913275177,0.34,110570.0,110560.0,0.17890807]
[1761913276007,0.34,110570.0,110560.0,0.17790807]
[1761913276215,0.34,110570.0,110560.0,0.18090807]
[1761913277894,0.46661662,110570.0,110560.0,0.18090807]
[1761913278542,0.34,110570.0,110560.0,0.18090807]
[1761913282028,0.46661662,110570.0,110560.0,0.18090807]
[1761913282291,0.46661662,110570.0,110560.0,0.05428]
[1761913282734,0.46661662,110570.0,110560.0,0.18090807]
[1761913283624,0.34,110570.0,110560.0,0.18090807]
[1761913285532,0.34,110570.0,110560.0,0.58854098]
[1761913285780,0.34,110570.0,110560.0,0.18090807]
[1761913285990,0.34,110570.0,110560.0,0.19899779]
[1761913286457,0.34,110570.0,110560.0,0.67835999]
[1761913286664,0.34,110570.0,110560.0,0.66027027]
[1761913286873,0.34,110570.0,110560.0,0.27072708]
[1761913287125,0.34,110570.0,110560.0,0.66027027]
[1761913287965,0.34,110570.0,110560.0,0.27072708]
[1761913289298,0.34,110570.0,110560.0,0.66027027]
[1761913290336,0.34,110570.0,110560.0,0.27072708]
[1761913291408,0.34,110570.0,110560.0,0.66027027]
[1761913294915,0.34,110570.0,110560.0,0.27072708]
[1761913296430,0.34,110570.0,110560.0,0.66027027]
[1761913298699,0.34,110570.0,110560.0,0.27072708]
[1761913298908,0.34,110570.0,110560.0,0.66027027]
[1761913304750,0.00035001,110580.0,110570.0,0.12661662]
[1761913304970,0.00035001,110580.0,110570.0,0.58586789]
[1761913305186,0.00035001,110580.0,110570.0,0.65759882]
[1761913306520,0.00035001,110580.0,110570.0,0.65859882]
[1761913307205,0.00035001,110580.0,110570.0,0.65759882]
[1761913307430,0.00035001,110580.0,110570.0,0.66059882]
[1761913308336,0.00035001,110580.0,110570.0,1.05014201]
[1761913308563,0.0002,110590.0,110580.0,0.12660517]
[1761913308794,0.0002,110600.0,110590.0,0.12659372]
[1761913309007,0.0002869,110600.0,110590.0,0.65757592]
[1761913310757,0.0002869,110600.0,110590.0,0.66357592]
[1761913311848,0.0002869,110600.0,110590.0,1.05311911]
[1761913312288,0.0002869,110600.0,110590.0,0.27403273]
[1761913312492,0.0002869,110600.0,110590.0,0.66357592]
[1761913313342,0.0002869,110600.0,110590.0,1.05311911]
[1761913315476,0.38954319,110630.0,110620.0,0.13790939]
[1761913315677,0.52717477,110630.0,110620.0,0.02707]
[1761913315826,0.52827232,110630.0,110610.0,0.13792083]
[1761913316037,0.52717477,110630.0,110620.0,0.01572]
[1761913316264,0.52717477,110630.0,110620.0,0.15362939]
[1761913316465,0.52717477,110630.0,110620.0,0.02707]
[1761913316664,0.53227232,110630.0,110620.0,0.02707]
[1761913316889,0.53227232,110630.0,110620.0,0.15362939]
[1761913317031,0.00509755,110630.0,110620.0,1.40516469]
[1761913317291,0.00509755,110630.0,110620.0,1.38708478]
[1761913317500,0.0002,110670.0,110660.0,0.12651364]
[1761913317699,0.00034419,110670.0,110660.0,0.26795265]
[1761913317909,0.3983219,110670.0,110660.0,0.26795265]
[1761913318842,0.52482411,110670.0,110660.0,0.02707]
[1761913319199,0.52482411,110670.0,110650.0,0.16242507]
[1761913319401,0.52682411,110670.0,110650.0,0.25224408]
[1761913319603,0.38954319,110660.0,110650.0,0.25224408]
[1761913320003,0.38954319,110660.0,110650.0,0.26796408]
[1761913320208,0.1278464,110670.0,110650.0,0.26796408]
[1761913320334,0.38954319,110660.0,110650.0,0.26796408]
[1761913320734,0.39054319,110660.0,110650.0,0.26796408]
[1761913320943,0.1268464,110670.0,110650.0,0.26796408]
[1761913321154,0.52481,110670.0,110660.0,0.01572]
[1761913321374,0.52681,110670.0,110660.0,0.01572]
[1761913322013,0.52581,110670.0,110660.0,0.01572]
[1761913322449,0.40030779,110670.0,110660.0,0.17813364]
[1761913323105,0.40018532,110670.0,110660.0,0.17813364]
[1761913323731,0.52668753,110670.0,110660.0,0.17813364]
[1761913323960,0.52768753,110670.0,110660.0,0.05162]
[1761913324380,0.40118532,110670.0,110660.0,0.17813364]
[1761913324590,0.01164213,110670.0,110660.0,0.26795265]
[1761913324806,0.40118532,110670.0,110660.0,0.14143901]
[1761913325013,0.01164213,110670.0,110660.0,0.26795265]
[1761913325246,0.01064213,110670.0,110660.0,0.26795265]
[1761913325460,0.01064213,110670.0,110660.0,0.26895265]
[1761913325674,0.00964213,110670.0,110660.0,0.26895265]
[1761913328243,0.00964213,110670.0,110660.0,1.38803903]
[1761913328683,0.00122172,110670.0,110660.0,0.99849584]
[1761913329343,0.00962201,110670.0,110660.0,1.38803903]
[1761913329551,0.00122172,110670.0,110660.0,1.38803903]
[1761913330306,0.00122172,110670.0,110660.0,0.99849584]
[1761913330538,0.91521257,110670.0,110660.0,0.01235]
[1761913330736,0.52567013,110670.0,110650.0,0.13787239]
[1761913330952,2.0,110650.0,110640.0,0.13788638]
[1761913331158,0.3979462,110650.0,110640.0,0.56770539]
[1761913331364,0.3979462,110650.0,110640.0,0.60797539]
[1761913332374,0.52447127,110650.0,110640.0,0.60797539]
[1761913332578,0.12653651,110640.0,110630.0,0.01135]
[1761913332755,0.90562289,110640.0,110630.0,0.02707]
[1761913332970,0.12654795,110630.0,110620.0,0.01135]
[1761913333167,0.51609114,110630.0,110620.0,0.02707]
[1761913333373,0.32100147,110630.0,110620.0,0.02707]
[1761913333630,0.13496458,110630.0,110620.0,0.15362939]
[1761913333822,0.52450777,110630.0,110620.0,0.15362939]
[1761913334278,0.39804672,110630.0,110620.0,0.15362939]
[1761913334494,0.00850353,110630.0,110620.0,0.17621939]
[1761913334903,0.00850353,110630.0,110620.0,0.17721939]
[1761913335256,0.39804672,110630.0,110620.0,0.17721939]
[1761913335456,0.00850353,110630.0,110620.0,0.17721939]
[1761913335633,0.52459467,110630.0,110620.0,0.02807]
[1761913335834,0.52459467,110630.0,110620.0,0.15462939]
[1761913336122,0.52459467,110630.0,110620.0,0.02807]
[1761913336329,0.13505148,110630.0,110620.0,0.02807]
[1761913336535,0.52459467,110630.0,110620.0,0.02807]
[1761913336762,0.52459467,110630.0,110620.0,0.001]
[1761913337707,0.13505148,110630.0,110620.0,0.001]
[1761913337907,0.52459467,110630.0,110620.0,0.001]
[1761913339427,3.00395687,110630.0,110620.0,0.001]
[1761913339650,3.4506621,110630.0,110620.0,0.001]
[1761913339877,0.12658227,110600.0,110590.0,0.01330853]
[1761913340099,0.52454209,110600.0,110590.0,0.09107754]
[1761913340316,0.52454209,110600.0,110590.0,0.10748754]
[1761913340559,0.52454209,110600.0,110590.0,0.09107754]
[1761913341388,0.1349989,110600.0,110590.0,0.21767126]
[1761913341598,0.1349989,110600.0,110590.0,0.21867126]
[1761913341827,0.1349989,110600.0,110590.0,0.09207754]
[1761913342051,0.58875805,110600.0,110590.0,0.00225853]
[1761913342522,0.14076539,110610.0,110590.0,0.14526225]
[1761913342746,2.57751607,110610.0,110590.0,0.18141225]
[1761913342961,0.58868571,110610.0,110600.0,0.01641]
[1761913343187,0.1350094,110610.0,110600.0,0.04025]
[1761913343611,0.1350094,110610.0,110600.0,0.03925]
[1761913343827,0.1360494,110610.0,110600.0,0.01641]
[1761913344033,0.57854629,110610.0,110600.0,0.01641]
[1761913344493,0.1360494,110610.0,110600.0,0.01641]
[1761913344709,0.14715504,110610.0,110600.0,0.01641]
[1761913345125,0.14815504,110610.0,110600.0,0.01641]
[1761913345553,0.12658227,110600.0,110590.0,0.22898126]
[1761913345796,0.12658227,110600.0,110590.0,0.10238754]
[1761913345998,0.12762227,110600.0,110590.0,0.11879754]
[1761913346229,0.58117336,110610.0,110590.0,0.27023126]
[1761913346440,0.12657083,110610.0,110600.0,0.16783227]
[1761913346667,2.0,110610.0,110600.0,0.16783227]
[1761913346884,0.11306043,110620.0,110600.0,0.18591545]
[1761913347113,0.11410043,110620.0,110610.0,0.01641]
[1761913347564,0.11410043,110620.0,110610.0,0.02772]
[1761913347785,0.12657083,110610.0,110600.0,0.02484]
[1761913348003,0.12657083,110610.0,110600.0,0.15142227]
[1761913348227,0.12757083,110610.0,110600.0,0.16783227]
[1761913348480,0.12657083,110610.0,110600.0,0.04125]
[1761913348710,0.12761083,110610.0,110600.0,0.01641]
[1761913349820,0.12761083,110610.0,110590.0,0.26286366]
[1761913350764,0.12762227,110600.0,110590.0,0.15557225]
[1761913351184,0.12658227,110600.0,110590.0,0.18041225]
[1761913351991,0.12762227,110600.0,110590.0,0.02897853]
[1761913352592,0.12762227,110600.0,110590.0,0.03097853]